bitfinex/quotes_BTCUSD_20251031
["timestamp","ask_amount","ask_price","bid_price","bid_amount"]
[1761870178220,0.81783287,108660.0,108650.0,0.33037357]
[1761870179123,0.34,108670.0,108660.0,0.18406037]
[1761870179322,0.74308767,108670.0,108660.0,0.32482938]
[1761870179705,0.75490004,108670.0,108660.0,0.32482938]
[1761870180296,0.75490004,108670.0,108660.0,0.33182938]
[1761870180487,0.5358558,108670.0,108660.0,0.33182938]
[1761870180671,0.5358558,108670.0,108660.0,0.33082938]
[1761870180881,0.93894347,108670.0,108660.0,0.15076901]
[1761870181104,1.34203114,108670.0,108660.0,0.06095]
[1761870181790,1.34203114,108670.0,108660.0,0.24501037]
[1761870182002,0.93894347,108670.0,108660.0,0.24501037]
[1761870182215,0.75490004,108670.0,108660.0,0.24501037]
[1761870182424,0.75490004,108670.0,108660.0,0.24101037]
[1761870182629,0.75490004,108670.0,108660.0,0.23501037]
[1761870182878,0.93894347,108670.0,108660.0,0.23701037]
[1761870183101,0.93894347,108670.0,108660.0,0.24001037]
[1761870184309,1.34203114,108670.0,108660.0,0.05595]
[1761870184713,1.34203114,108670.0,108660.0,0.05685172]
[1761870185695,1.34203114,108670.0,108660.0,0.24091209]
[1761870186071,1.00203114,108670.0,108660.0,0.24091209]
[1761870187312,1.00203114,108670.0,108660.0,0.05685172]
[1761870188712,1.34203114,108670.0,108660.0,0.05685172]
[1761870189133,1.34203114,108670.0,108660.0,0.24091209]
[1761870190837,0.93894347,108670.0,108660.0,0.24091209]
[1761870191204,1.34203114,108670.0,108660.0,0.24091209]
[1761870192147,1.15798771,108670.0,108660.0,0.24091209]
[1761870192297,0.35181237,108670.0,108660.0,0.3307311]
[1761870192486,0.40308767,108670.0,108660.0,0.3307311]
[1761870192691,0.74308767,108680.0,108670.0,0.18404343]
[1761870192895,0.75478797,108680.0,108670.0,0.23499343]
[1761870193096,0.01448125,108690.0,108680.0,0.18402649]
[1761870193301,4.844e-05,108690.0,108680.0,0.23497649]
[1761870193517,0.524058,108690.0,108680.0,0.23497649]
[1761870193709,0.74313611,108690.0,108680.0,0.23497649]
[1761870193916,0.34004844,108690.0,108680.0,0.3247955]
[1761870194183,0.74313611,108690.0,108680.0,0.3247955]
[1761870195036,0.7549411,108690.0,108680.0,0.3247955]
[1761870195471,0.93895066,108690.0,108680.0,0.3247955]
[1761870195694,0.93895066,108690.0,108680.0,0.3287955]
[1761870195875,1.34203833,108690.0,108680.0,0.14476901]
[1761870196526,1.34203833,108690.0,108680.0,0.14776901]
[1761870196644,1.34203833,108690.0,108680.0,0.14476901]
[1761870196846,1.34203833,108690.0,108680.0,0.14076901]
[1761870197064,1.34203833,108690.0,108680.0,0.14276901]
[1761870197281,1.34203833,108690.0,108680.0,0.05295]
[1761870197518,3.34203833,108690.0,108680.0,0.02879]
[1761870198044,3.34203833,108690.0,108680.0,0.03079]
[1761870198471,3.745126,108690.0,108680.0,0.004]
[1761870199353,0.18402649,108680.0,108670.0,0.0115]
[1761870199551,2.18404343,108670.0,108660.0,0.0115]
[1761870199754,0.18406037,108660.0,108650.0,0.23005766]
[1761870200119,0.99023571,108660.0,108650.0,0.31987667]
[1761870200271,0.99023571,108660.0,108650.0,0.33497667]
[1761870200677,0.80617534,108660.0,108650.0,0.33497667]
[1761870201089,0.99023571,108660.0,108650.0,0.33497667]
[1761870202068,0.99023571,108660.0,108650.0,0.33897667]
[1761870202494,0.80617534,108660.0,108650.0,0.34197667]
[1761870202696,0.58711416,108680.0,108670.0,0.18404343]
[1761870202902,0.58711416,108680.0,108660.0,0.20892503]
[1761870202903,0.34,108670.0,108660.0,0.20892503]
[1761870203118,0.34,108670.0,108660.0,0.27386404]
[1761870203119,0.74308767,108670.0,108660.0,0.27386404]
[1761870203339,0.74308767,108670.0,108660.0,0.30073404]
[1761870203540,0.58711416,108680.0,108670.0,0.18404343]
[1761870203541,0.40308767,108680.0,108670.0,0.18404343]
[1761870203751,0.40308767,108680.0,108670.0,0.32561244]
[1761870203954,0.80617534,108680.0,108670.0,0.32561244]
[1761870204532,0.80617534,108680.0,108670.0,0.36179472]
[1761870204533,0.40308767,108680.0,108670.0,0.36179472]
[1761870204750,0.40308767,108680.0,108670.0,0.36279472]
[1761870205383,0.80989541,108690.0,108680.0,0.18402649]
[1761870205596,0.99390497,108690.0,108680.0,0.3138255]
[1761870205866,0.80989541,108690.0,108680.0,0.3138255]
[1761870206292,0.99390497,108690.0,108680.0,0.3138255]
[1761870207033,0.35285343,108690.0,108680.0,0.3138255]
[1761870207253,0.81089541,108690.0,108680.0,0.3138255]
[1761870207670,0.81189541,108690.0,108680.0,0.3138255]
[1761870207875,0.99590497,108690.0,108680.0,0.3138255]
[1761870208083,0.99490497,108690.0,108680.0,0.3138255]
[1761870208944,0.99490497,108690.0,108680.0,0.3158255]
[1761870209363,0.45909042,108690.0,108680.0,0.3158255]
[1761870209805,0.45809042,108690.0,108680.0,0.3158255]
[1761870210254,0.45809042,108690.0,108680.0,0.3168255]
[1761870210460,0.45809042,108690.0,108680.0,0.3285955]
[1761870210971,4.844e-05,108690.0,108680.0,0.36477778]
[1761870214487,4.844e-05,108690.0,108680.0,0.36522855]
[1761870222113,0.88766311,108700.0,108690.0,0.21087956]
[1761870222353,0.8876628,108700.0,108690.0,0.3257229]
[1761870223138,0.8876628,108700.0,108690.0,0.14171334]
[1761870223352,0.89866052,108700.0,108690.0,0.3257229]
[1761870223559,0.00106273,108730.0,108700.0,0.22935911]
[1761870223762,0.00106273,108730.0,108720.0,0.21187879]
[1761870223971,0.00106273,108730.0,108720.0,0.3016978]
[1761870223972,0.01239943,108730.0,108720.0,0.3016978]
[1761870224159,0.00106273,108730.0,108720.0,0.3250278]
[1761870224759,0.70473289,108730.0,108720.0,0.3250278]
[1761870225508,0.41484728,108730.0,108720.0,0.3250278]
[1761870225698,0.41984728,108730.0,108720.0,0.3250278]
[1761870226114,0.41484728,108730.0,108720.0,0.3250278]
[1761870226302,0.41484728,108730.0,108720.0,0.3260278]
[1761870226515,0.41484728,108730.0,108720.0,0.3280278]
[1761870228533,0.59878915,108730.0,108720.0,0.3280278]
[1761870228936,1.00154412,108730.0,108720.0,0.05425]
[1761870229139,3.34608412,108730.0,108720.0,0.003]
[1761870229589,3.34608412,108730.0,108720.0,0.01886]
[1761870229840,3.34608412,108730.0,108720.0,0.03092]
[1761870230040,3.34608412,108730.0,108720.0,0.02892]
[1761870230212,3.34708412,108730.0,108720.0,0.02792]
[1761870230372,3.34808412,108730.0,108720.0,0.02792]
[1761870231486,0.18395879,108720.0,108710.0,0.21936506]
[1761870231701,0.98946873,108720.0,108710.0,0.30918407]
[1761870231926,0.98946873,108720.0,108710.0,0.32504407]
[1761870232586,0.77974145,108720.0,108710.0,0.32504407]
[1761870232857,0.96370024,108720.0,108710.0,0.32504407]
[1761870233014,0.96370024,108720.0,108710.0,0.14106901]
[1761870234431,0.76591668,108720.0,108710.0,0.14106901]
[1761870236902,2.77045668,108720.0,108710.0,0.02792]
[1761870237081,3.11045668,108720.0,108710.0,0.02792]
[1761870244009,3.19800368,108720.0,108710.0,0.02792]
[1761870244227,2.52397571,108710.0,108700.0,0.01206]
[1761870244460,0.18399264,108700.0,108690.0,0.0121397]
[1761870244687,1.33404258,108700.0,108690.0,0.14114871]
[1761870244890,1.33404258,108700.0,108690.0,0.11781871]
[1761870245095,1.33404258,108700.0,108690.0,0.0279997]
[1761870245957,1.33404258,108700.0,108690.0,0.0553297]
[1761870247022,0.93128761,108700.0,108690.0,0.0573297]
[1761870247458,1.33404258,108700.0,108690.0,0.0573297]
[1761870247871,0.93128761,108700.0,108690.0,0.0573297]
[1761870249812,1.33404258,108700.0,108690.0,0.0573297]
[1761870250952,1.33404258,108700.0,108690.0,0.0339997]
[1761870251346,3.33404258,108700.0,108690.0,0.0339997]
[1761870251551,3.33858258,108700.0,108690.0,0.0063697]
[1761870252817,3.33858258,108700.0,108690.0,0.0043697]
[1761870253174,3.33958258,108700.0,108690.0,0.0003697]
[1761870253573,3.33604258,108700.0,108690.0,0.0003697]
[1761870254617,3.33604258,108700.0,108690.0,0.0275297]
[1761870256082,3.33604258,108700.0,108690.0,0.0003697]
[1761870256661,3.43040159,108700.0,108690.0,0.0003697]
[1761870257058,3.5202206,108700.0,108690.0,0.0003697]
[1761870258917,3.92297557,108700.0,108690.0,0.0003697]
[1761870259089,3.92297557,108700.0,108690.0,1e-08]
[1761870259295,3.95064794,108700.0,108690.0,1e-08]
[1761870260148,3.94864794,108700.0,108690.0,1e-08]
[1761870260343,3.95664794,108700.0,108690.0,1e-08]
[1761870261536,3.46407396,108700.0,108690.0,1e-08]
[1761870261919,3.45603804,108700.0,108690.0,1e-08]
[1761870262543,3.45103804,108700.0,108690.0,1e-08]
[1761870262764,3.45003804,108700.0,108690.0,1e-08]
[1761870262979,3.45203804,108700.0,108690.0,1e-08]
[1761870263140,3.54185705,108700.0,108690.0,1e-08]
[1761870264749,3.45203804,108700.0,108690.0,1e-08]
[1761870266481,3.4664715,108700.0,108690.0,1e-08]
[1761870266787,3.45203804,108700.0,108690.0,1e-08]
[1761870266988,3.46647004,108700.0,108690.0,1e-08]
[1761870269488,3.12996596,108700.0,108690.0,1e-08]
[1761870269727,3.09775359,108700.0,108690.0,1e-08]
[1761870270866,3.09575359,108700.0,108690.0,1e-08]
[1761870271055,3.1855726,108700.0,108690.0,1e-08]
[1761870271257,3.1845726,108700.0,108690.0,1e-08]
[1761870271405,3.5245726,108700.0,108690.0,1e-08]
[1761870271762,3.5255726,108700.0,108690.0,1e-08]
[1761870272296,3.00593458,108700.0,108690.0,0.01568001]
[1761870272536,3.34593458,108700.0,108690.0,0.02699001]
[1761870272988,3.00593458,108700.0,108690.0,0.02699001]
[1761870273514,3.34593458,108700.0,108690.0,0.02699001]
[1761870273777,3.34593458,108700.0,108690.0,0.01131001]
[1761870273932,3.34673458,108700.0,108690.0,0.01050426]
[1761870274848,3.34673458,108700.0,108690.0,0.02618426]
[1761870275506,3.75060036,108700.0,108690.0,0.05011426]
[1761870276175,3.74960036,108700.0,108690.0,0.05011426]
[1761870276378,3.74860036,108700.0,108690.0,0.05011426]
[1761870276685,3.74780036,108700.0,108690.0,0.05011426]
[1761870277483,3.74780036,108700.0,108690.0,0.05111426]
[1761870277689,2.53842464,108700.0,108690.0,0.05111426]
[1761870278024,3.33024312,108700.0,108690.0,0.05111426]
[1761870278361,1.33024312,108700.0,108690.0,0.23512382]
[1761870279267,1.33024312,108700.0,108690.0,0.05111426]
[1761870280904,1.82318737,108700.0,108690.0,0.05111426]
[1761870281348,3.73496836,108700.0,108690.0,0.001]
[1761870281750,2.52479264,108700.0,108690.0,0.001]
[1761870281956,3.53370878,108700.0,108690.0,0.02799]
[1761870282167,3.71770142,108700.0,108690.0,0.02799]
[1761870284143,3.71770142,108700.0,108690.0,0.01231]
[1761870284370,3.71770142,108700.0,108690.0,0.001]
[1761870285027,3.71770142,108700.0,108690.0,0.02945]
[1761870285772,3.71770142,108700.0,108690.0,0.001]
[1761870286556,3.77618672,108700.0,108690.0,0.001]
[1761870291262,3.73213206,108700.0,108690.0,0.001]
[1761870291684,3.71770142,108700.0,108690.0,0.001]
[1761870294549,3.73213208,108700.0,108690.0,0.001]
[1761870295203,3.73213208,108700.0,108690.0,0.01703]
[1761870296450,3.73213208,108700.0,108690.0,0.001]
[1761870297172,3.40859902,108700.0,108690.0,0.001]
[1761870297593,3.95936707,108700.0,108690.0,0.001]
[1761870297806,4.7856218,108700.0,108690.0,0.001]
[1761870298048,4.79328664,108700.0,108690.0,0.001]
[1761870298237,0.18404343,108670.0,108660.0,0.03511]
[1761870298450,0.99029391,108670.0,108660.0,0.03525448]
[1761870298662,0.99109391,108670.0,108660.0,0.05128448]
[1761870298910,0.99029391,108670.0,108660.0,0.05128448]
[1761870299605,0.18404343,108670.0,108660.0,0.05128448]
[1761870299830,0.99029391,108670.0,108660.0,0.05128448]
[1761870300093,0.99029391,108670.0,108660.0,0.05228448]
[1761870300536,0.99109391,108670.0,108660.0,0.03048448]
[1761870301213,0.99109391,108670.0,108660.0,0.00314448]
[1761870301214,3.90198784,108670.0,108660.0,0.00314448]
[1761870302099,3.82483816,108670.0,108660.0,0.00314448]
[1761870302303,3.82483816,108670.0,108660.0,0.00214448]
[1761870302746,3.82483816,108670.0,108660.0,0.00014448]
[1761870302969,3.82483816,108670.0,108660.0,0.00114448]
[1761870303917,3.82483816,108670.0,108660.0,0.0018208]
[1761870304146,3.9041995,108670.0,108660.0,0.0018208]
[1761870304823,3.93187466,108670.0,108660.0,0.0018208]
[1761870307298,3.9041995,108670.0,108660.0,0.0018208]
[1761870307734,3.82483816,108670.0,108660.0,0.0018208]
[1761870308600,3.42171292,108670.0,108660.0,0.0018208]
[1761870308790,3.82483816,108670.0,108660.0,0.0018208]
[1761870309128,3.82483816,108670.0,108660.0,8e-07]
[1761870309330,3.82483816,108670.0,108630.0,0.0004]
[1761870309331,0.18409425,108640.0,108630.0,0.0004]
[1761870309527,3.73346997,108640.0,108630.0,0.02822286]
[1761870309766,3.73346997,108640.0,108630.0,0.00054454]
[1761870310205,4.13659521,108640.0,108630.0,0.00054454]
[1761870310393,3.73346997,108640.0,108630.0,0.00054454]
[1761870310543,3.73346997,108640.0,108630.0,0.00354454]
[1761870311231,3.82328898,108640.0,108630.0,0.00354454]
[1761870311433,3.73346997,108640.0,108630.0,0.00354454]
[1761870311788,3.73346997,108640.0,108630.0,0.00054454]
[1761870312146,3.73346997,108640.0,108630.0,0.00154454]
[1761870313246,3.82328898,108640.0,108630.0,0.00154454]
[1761870313468,4.31623323,108640.0,108630.0,0.00154454]
[1761870313666,3.91310799,108640.0,108630.0,0.00154454]
[1761870314465,3.82328898,108640.0,108630.0,0.00154454]
[1761870315066,3.82328898,108640.0,108630.0,0.00222113]
[1761870316057,3.73346997,108640.0,108630.0,0.00222113]
[1761870316270,2.52409425,108640.0,108630.0,0.05413113]
[1761870316474,3.33034473,108640.0,108630.0,0.05413113]
[1761870316863,3.73346997,108640.0,108630.0,0.03006113]
[1761870318685,3.73162997,108640.0,108630.0,0.03006113]
[1761870319795,3.73162997,108640.0,108630.0,0.00222113]
[1761870321351,3.73037021,108640.0,108630.0,0.00222113]
[1761870322897,2.0,108650.0,108640.0,0.18408842]
[1761870323105,0.40312524,108650.0,108640.0,0.23599842]
[1761870323307,0.40312524,108660.0,108650.0,0.18407731]
[1761870323557,0.80625048,108660.0,108650.0,0.23598731]
[1761870323780,0.80625048,108660.0,108650.0,0.26366048]
[1761870323987,0.19324293,108680.0,108660.0,0.18404976]
[1761870324152,2.40312524,108670.0,108660.0,0.30981877]
[1761870324508,2.74312524,108670.0,108660.0,0.30981877]
[1761870324634,2.92716867,108670.0,108660.0,0.32577877]
[1761870324834,2.99029391,108670.0,108660.0,0.32577877]
[1761870325029,0.18406037,108660.0,108650.0,0.24870048]
[1761870325284,0.80625048,108660.0,108650.0,0.33851949]
[1761870325476,0.80625048,108660.0,108650.0,0.35347949]
[1761870325679,0.99031085,108660.0,108650.0,0.35347949]
[1761870325995,0.80625048,108660.0,108650.0,0.35347949]
[1761870326771,0.99031085,108660.0,108650.0,0.35347949]
[1761870326976,0.80625048,108660.0,108650.0,0.35347949]
[1761870327346,0.80625048,108660.0,108650.0,0.35447949]
[1761870327766,0.80625048,108660.0,108650.0,0.35647949]
[1761870330664,0.99031085,108660.0,108650.0,0.35647949]
[1761870331074,0.80625048,108660.0,108650.0,0.35647949]
[1761870331857,0.99031085,108660.0,108650.0,0.35647949]
[1761870332372,0.99031085,108660.0,108650.0,0.17240218]
[1761870332785,3.80699,108660.0,108650.0,0.03084]
[1761870333007,3.80699,108660.0,108650.0,0.003]
[1761870333297,5.10618473,108660.0,108650.0,0.003]
[1761870333523,3.89680901,108660.0,108650.0,0.003]
[1761870333697,3.89680901,108660.0,108650.0,0.001]
[1761870333912,2.52506037,108660.0,108650.0,0.01696]
[1761870334135,3.73443609,108660.0,108650.0,0.01696]
[1761870334329,3.74887165,108660.0,108650.0,0.001]
[1761870334601,0.18407731,108650.0,108640.0,0.20816207]
[1761870334831,0.99032779,108650.0,108640.0,0.20816207]
[1761870335122,0.99032779,108650.0,108640.0,0.22412207]
[1761870335512,0.58750231,108650.0,108640.0,0.22412207]
[1761870336219,0.58750231,108650.0,108640.0,0.22412425]
[1761870336666,0.58750231,108650.0,108640.0,0.04048102]
[1761870338179,0.58750231,108650.0,108640.0,0.22457527]
[1761870338681,0.58750231,108650.0,108640.0,0.05236102]
[1761870338996,0.34,108660.0,108650.0,0.18407731]
[1761870339203,0.403425,108660.0,108650.0,0.23598731]
[1761870339408,0.403425,108660.0,108650.0,0.2362128]
[1761870339614,0.743425,108660.0,108650.0,0.2362128]
[1761870340192,0.743425,108660.0,108650.0,0.2382128]
[1761870340396,0.743425,108660.0,108650.0,0.2392128]
[1761870342837,0.92748537,108660.0,108650.0,0.2392128]
[1761870343811,1.33091037,108660.0,108650.0,0.2392128]
[1761870344965,1.33091037,108660.0,108650.0,0.05513549]
[1761870345277,1.33091037,108660.0,108650.0,0.07354322]
[1761870346516,1.33091037,108660.0,108650.0,0.03106549]
[1761870346721,3.33091037,108660.0,108650.0,0.00322549]
[1761870347650,3.33091037,108660.0,108650.0,0.00222549]
[1761870347865,3.33191037,108660.0,108650.0,0.00222549]
[1761870348058,3.33191037,108660.0,108650.0,0.02943549]
[1761870348415,3.33191037,108660.0,108650.0,0.05074549]
[1761870348613,3.33291037,108660.0,108650.0,0.05074549]
[1761870349031,3.33191037,108660.0,108650.0,0.02743549]
[1761870349483,3.2284445,108660.0,108650.0,0.02743549]
[1761870350386,3.2284445,108660.0,108650.0,0.00022549]
[1761870358550,2.8884445,108660.0,108650.0,0.00022549]
[1761870360209,2.97826351,108660.0,108650.0,0.00022549]
[1761870360423,2.8884445,108660.0,108650.0,0.00022549]
[1761870360621,3.2284445,108660.0,108650.0,0.00022549]
[1761870361049,3.2304445,108660.0,108650.0,0.00022549]
[1761870361247,3.32026351,108660.0,108650.0,0.00022549]
[1761870361461,3.35129191,108660.0,108650.0,0.00022549]
[1761870361615,3.35429191,108660.0,108650.0,0.00022549]
[1761870362150,3.32312429,108660.0,108650.0,0.00022549]
[1761870367665,3.32231854,108660.0,108650.0,0.00022549]
[1761870369457,3.42497763,108660.0,108650.0,0.00022549]
[1761870370588,2.5281154,108660.0,108650.0,0.05074549]
[1761870370819,3.33515862,108660.0,108650.0,0.05074549]
[1761870371012,3.33515862,108660.0,108650.0,0.2348228]
[1761870371147,3.33515862,108660.0,108650.0,0.05074549]
[1761870371356,3.33515862,108660.0,108650.0,0.2348228]
[1761870371569,3.33215862,108660.0,108650.0,0.2348228]
[1761870371774,0.92758198,108660.0,108650.0,0.2348228]
[1761870371983,0.74352161,108660.0,108650.0,0.2348228]
[1761870372399,0.92758198,108660.0,108650.0,0.2348228]
[1761870374429,0.20768118,108670.0,108660.0,0.18406037]
[1761870374636,0.95120279,108670.0,108660.0,0.05311]
[1761870375247,1.3547244,108670.0,108660.0,0.05311]
[1761870376258,1.44454341,108670.0,108660.0,0.05311]
[1761870376547,1.44554341,108670.0,108660.0,0.05311]
[1761870377385,1.44654341,108670.0,108660.0,0.05311]
[1761870378120,1.43210783,108670.0,108660.0,0.05311]
[1761870378777,3.34228882,108670.0,108660.0,0.02817]
[1761870379420,3.34228882,108670.0,108660.0,0.01224]
[1761870379858,2.52406037,108660.0,108650.0,0.01158549]
[1761870380073,3.33110359,108660.0,108650.0,0.01158549]
[1761870380286,3.33110359,108660.0,108650.0,0.02762549]
[1761870381600,3.33110359,108660.0,108650.0,0.05014549]
[1761870382704,3.33110359,108660.0,108650.0,0.2342228]
[1761870383362,3.33110359,108660.0,108650.0,0.05014549]
[1761870383806,3.33110359,108660.0,108650.0,0.02762549]
[1761870384467,3.33110359,108660.0,108650.0,0.05014549]
[1761870388299,3.33110359,108660.0,108650.0,0.02762549]
[1761870388477,3.09415346,108660.0,108650.0,0.02762549]
[1761870388814,3.27821383,108660.0,108650.0,0.02762549]
[1761870390771,2.99110359,108660.0,108650.0,0.02762549]
[1761870391222,2.99110359,108660.0,108650.0,0.00022549]
[1761870391444,3.3946252,108660.0,108650.0,0.00022549]
[1761870391851,3.48444421,108660.0,108650.0,0.00022549]
[1761870392793,3.48744421,108660.0,108650.0,0.00022549]
[1761870393454,3.82744421,108660.0,108650.0,0.00022549]
[1761870393684,3.86821852,108660.0,108650.0,0.00022549]
[1761870393900,3.87021852,108660.0,108650.0,0.00022549]
[1761870397424,5.08099851,108660.0,108650.0,0.00022549]
[1761870399311,4.74099851,108660.0,108650.0,0.00022549]
[1761870405865,2.58765172,108640.0,108630.0,0.00054454]
[1761870406081,3.39476666,108640.0,108630.0,0.00054454]
[1761870406516,3.39476666,108640.0,108630.0,0.00099562]
[1761870408441,3.39476666,108640.0,108630.0,0.05265562]
[1761870408797,1.39476666,108640.0,108630.0,0.05265562]
[1761870409370,1.39476666,108640.0,108630.0,0.02816562]
[1761870410048,2.0,108640.0,108630.0,0.05265562]
[1761870410253,0.99120919,108640.0,108630.0,0.05265562]
[1761870410991,0.99120919,108640.0,108630.0,0.00099562]
[1761870410992,1.39476666,108640.0,108630.0,0.00099562]
[1761870411201,3.39476666,108640.0,108630.0,0.00099562]
[1761870411737,3.39476666,108640.0,108630.0,0.01633562]
[1761870412156,3.39476666,108640.0,108630.0,0.00099562]
[1761870413100,3.73476666,108640.0,108630.0,0.01633562]
[1761870413511,3.73476666,108640.0,108630.0,0.02816562]
[1761870415208,3.73476666,108640.0,108630.0,0.05265562]
[1761870415411,3.73476666,108640.0,108630.0,0.02816562]
[1761870415620,3.73476666,108640.0,108630.0,0.21227682]
[1761870416225,3.73476666,108640.0,108630.0,0.02816562]
[1761870418372,3.73476666,108640.0,108630.0,0.21227682]
[1761870418602,3.73476666,108640.0,108630.0,0.02816562]
[1761870418832,3.82458567,108640.0,108630.0,0.00099562]
[1761870419054,5.12507709,108640.0,108630.0,0.00099562]
[1761870419485,3.91440468,108640.0,108630.0,0.00099562]
[1761870419944,3.91540468,108640.0,108630.0,0.00099562]
[1761870420182,3.91640468,108640.0,108630.0,0.00099562]
[1761870420393,3.91540468,108640.0,108630.0,0.00099562]
[1761870420839,3.91640468,108640.0,108630.0,0.00099562]
[1761870421055,1.33320919,108640.0,108630.0,0.23676682]
[1761870421297,1.73676666,108640.0,108630.0,0.05265562]
[1761870421541,1.73676666,108640.0,108630.0,0.02816562]
[1761870422158,1.73576666,108640.0,108630.0,0.02816562]
[1761870422385,1.73576666,108640.0,108630.0,0.05265562]
[1761870422594,1.73576666,108640.0,108630.0,0.05465562]
[1761870422805,1.73476666,108640.0,108630.0,0.05465562]
[1761870423225,1.73476666,108640.0,108630.0,0.05565562]
[1761870423854,1.73476666,108640.0,108630.0,0.23976682]
[1761870424067,1.73476666,108640.0,108630.0,0.05565562]
[1761870424616,1.39476666,108640.0,108630.0,0.05565562]
[1761870425236,1.39476666,108640.0,108630.0,0.03116562]
[1761870425654,1.39476666,108640.0,108630.0,0.00399562]
[1761870426238,1.39476666,108640.0,108630.0,0.01933562]
[1761870427070,1.73476666,108640.0,108630.0,0.01933562]
[1761870428215,3.73476666,108640.0,108630.0,0.00399562]
[1761870429283,3.73476666,108640.0,108630.0,0.00199562]
[1761870429498,3.73476666,108640.0,108630.0,0.00099562]
[1761870429925,5.03525808,108640.0,108630.0,0.00099562]
[1761870430175,4.22814314,108640.0,108630.0,0.00099562]
[1761870430807,4.31796215,108640.0,108630.0,0.00099562]
[1761870431629,3.91440468,108640.0,108630.0,0.00099562]
[1761870431838,3.91540468,108640.0,108630.0,0.00099562]
[1761870432453,3.91640468,108640.0,108630.0,0.00099562]
[1761870433740,5.12707709,108640.0,108630.0,0.00099562]
[1761870438725,4.913194,108640.0,108630.0,0.00099562]
[1761870438938,5.09728825,108640.0,108630.0,0.00099562]
[1761870440721,3.79679683,108640.0,108630.0,0.00099562]
[1761870445234,4.2003543,108640.0,108630.0,0.00099562]
[1761870446466,3.79679683,108640.0,108630.0,0.00099562]
[1761870448899,3.48658567,108640.0,108630.0,0.00099562]
[1761870450809,3.82658567,108640.0,108630.0,0.00099562]
[1761870452048,3.88859027,108640.0,108630.0,0.00099562]
[1761870453313,3.73676666,108640.0,108630.0,0.05126562]
[1761870453520,3.73676666,108640.0,108630.0,0.02853562]
[1761870455368,2.52609425,108640.0,108630.0,0.05126562]
[1761870455571,3.73676666,108640.0,108630.0,0.02853562]
[1761870457114,3.73676666,108640.0,108630.0,0.23537682]
[1761870457341,3.73676666,108640.0,108630.0,0.05126562]
[1761870457538,3.33321201,108640.0,108630.0,0.02853562]
[1761870458295,3.4041941,108640.0,108630.0,0.02853562]
[1761870459122,3.33321201,108640.0,108630.0,0.02853562]
[1761870460837,3.33321201,108640.0,108630.0,0.05126562]
[1761870461264,3.33321201,108640.0,108630.0,0.23537682]
[1761870461406,3.33321201,108640.0,108630.0,0.05126562]
[1761870462017,3.15250542,108640.0,108630.0,0.05126562]
[1761870462369,3.33321201,108640.0,108630.0,0.05126562]
[1761870462984,3.33321201,108640.0,108630.0,0.02853562]
[1761870462985,3.42303102,108640.0,108630.0,0.02853562]
[1761870463185,3.33321201,108640.0,108630.0,0.02853562]
[1761870467998,2.342,108640.0,108630.0,0.23756682]
[1761870468207,2.40555888,108640.0,108630.0,0.23756682]
[1761870468415,0.74555888,108640.0,108630.0,0.23756682]
[1761870468620,0.40555888,108640.0,108630.0,0.23756682]
[1761870468823,0.74555888,108640.0,108630.0,0.23756682]
[1761870469643,0.74555888,108640.0,108630.0,0.32738583]
[1761870471135,0.74555888,108640.0,108630.0,0.34196983]
[1761870475096,0.74555888,108640.0,108630.0,0.36964511]
[1761870481202,1.33321201,108640.0,108630.0,0.2798261]
[1761870481643,3.33321201,108640.0,108630.0,0.0432549]
[1761870481871,3.33321201,108640.0,108630.0,0.01557962]
[1761870482532,3.33321201,108640.0,108630.0,0.06954962]
[1761870482956,3.33321201,108640.0,108630.0,0.25366082]
[1761870483180,3.33321201,108640.0,108630.0,0.06954962]
[1761870483603,3.33321201,108640.0,108630.0,0.25366082]
[1761870483817,3.33321201,108640.0,108630.0,0.06954962]
[1761870486670,3.33321201,108640.0,108630.0,0.25366082]
[1761870487145,3.33321201,108640.0,108630.0,0.06954962]
[1761870487357,3.33321201,108640.0,108630.0,0.25366082]
[1761870489652,3.33321201,108640.0,108630.0,0.06954962]
[1761870490072,3.33321201,108640.0,108630.0,0.04462962]
[1761870490968,2.99121201,108640.0,108630.0,0.04462962]
[1761870493773,2.99121201,108640.0,108630.0,0.25133082]
[1761870493983,2.99121201,108640.0,108630.0,0.22874082]
[1761870495496,2.99121201,108640.0,108630.0,0.06721962]
[1761870495703,2.99121201,108640.0,108630.0,0.25133082]
[1761870496110,2.80711776,108640.0,108630.0,0.25133082]
[1761870496316,2.99121201,108640.0,108630.0,0.25133082]
[1761870498741,3.33121201,108640.0,108630.0,0.25133082]
[1761870499953,3.33121201,108640.0,108630.0,0.22874082]
[1761870500577,3.33121201,108640.0,108630.0,0.25244082]
[1761870503587,3.14711776,108640.0,108630.0,0.25244082]
[1761870504139,3.33121201,108640.0,108630.0,0.25244082]
[1761870505974,3.14711776,108640.0,108630.0,0.25244082]
[1761870506617,2.34,108640.0,108630.0,0.25244082]
[1761870506831,2.74355888,108640.0,108630.0,0.25244082]
[1761870507045,2.74355888,108640.0,108630.0,0.34225983]
[1761870507248,0.74355888,108640.0,108630.0,0.34225983]
[1761870507678,0.74355888,108640.0,108630.0,0.36993511]
[1761870507879,0.74355888,108640.0,108630.0,0.37093511]
[1761870508090,0.74355888,108640.0,108630.0,0.37193511]
[1761870512693,0.34,108640.0,108630.0,0.37193511]
[1761870512916,0.74355888,108640.0,108630.0,0.37193511]
[1761870515451,0.92765313,108640.0,108630.0,0.37193511]
[1761870515839,0.74355888,108640.0,108630.0,0.37193511]
[1761870516291,0.92765313,108640.0,108630.0,0.37193511]
[1761870516502,0.74355888,108640.0,108630.0,0.37193511]
[1761870516946,0.92765313,108640.0,108630.0,0.37193511]
[1761870518088,0.74355888,108640.0,108630.0,0.37193511]
[1761870518522,0.92765313,108640.0,108630.0,0.37193511]
[1761870519397,1.33104375,108640.0,108630.0,0.37193511]
[1761870520233,1.1469495,108640.0,108630.0,0.37193511]
[1761870521859,0.74347475,108640.0,108630.0,0.40811739]
[1761870522272,0.8069495,108640.0,108630.0,0.40811739]
[1761870522475,0.59673813,108660.0,108650.0,0.18407731]
[1761870522670,1.00021288,108660.0,108650.0,0.21154731]
[1761870522877,1.34021288,108660.0,108650.0,0.23524731]
[1761870523558,1.34021288,108660.0,108650.0,0.05117]
[1761870523766,1.74768763,108660.0,108650.0,0.05117]
[1761870523991,1.74668763,108660.0,108650.0,0.05117]
[1761870524227,3.74368763,108660.0,108650.0,0.05117]
[1761870524432,3.74468763,108660.0,108650.0,0.05117]
[1761870525500,3.83450664,108660.0,108650.0,0.05117]
[1761870525783,3.74468763,108660.0,108650.0,0.02747]
[1761870525961,3.74468763,108660.0,108650.0,0.21154731]
[1761870526419,3.74468763,108660.0,108650.0,0.02747]
[1761870526946,3.74468763,108660.0,108650.0,0.21154731]
[1761870527397,3.74468763,108660.0,108650.0,0.05061]
[1761870528609,3.74468763,108660.0,108650.0,0.23468731]
[1761870530670,3.74468763,108660.0,108650.0,0.05061]
[1761870531355,3.74468763,108660.0,108650.0,0.02747]
[1761870531874,3.74468763,108660.0,108650.0,0.05061]